[Event "VII GM Barcelona CC 2022"]
[Site "Barcelona"]
[Date "2022.05.14"]
[Round "9.4"]
[White "Roshka, Yevgeniy"]
[Black "Rodriguez Lopez, Rafael"]
[Result "1-0"]
[ECO "E24"]
[WhiteElo "2468"]
[BlackElo "2176"]
[Annotator "TA"]
[PlyCount "77"]
[EventDate "2022.05.10"]
[EventType "tourn"]
[EventCountry "ESP"]
[SourceTitle "playchess.com"]
[Source "ChessBase"]
[SourceQuality "1"]
[TimeControl "5400+30"]

{[%evp 15,77,-47,-16,-34,-51,-97,-85,-142,-120,-238,-204,-185,-92,-84,-88,-90,-75,-104,-92,-91,-97,-89,-85,-123,13,23,43,22,18,0,0,0,0,0,0,0,44,28,24,20,41,39,29,29,22,21,15,15,23,0,0,0,9,4,91,91,113,102,101,98,109,99,29989,29990]} 1. d4 {[%emt 0:00:07]} Nf6 {[%emt 0:00:18]} 2. c4 {[%emt 0:00:05]} e6 {[%emt 0:00:08]} 3. Nc3 {[%emt 0:00:03]} Bb4 {[%emt 0:00:11]} 4. a3 {[%emt 0:00:55]} Bxc3+ {[%emt 0:00:06]} 5. bxc3 {[%emt 0:00:02]} c5 {[%emt 0:00:28]} 6. f3 {[%emt 0:00:06]} Nc6 {[%emt 0:00:58]} 7. e4 {[%emt 0:00:18]} d6 {[%emt 0:00:44]} 8. Be3 {[%emt 0:02:05]} Qa5 {[%emt 0:00:26]} 9. d5 {[%emt 0:07:03] E24: Nimzo-Indian: Sämisch: Unusual Black 5th moves and 5...c5 sidelines.} Ne5 {[%emt 0:01:08][%cal Oe5c4]} (9... Qxc3+ $2 10. Bd2 Qb2 11. dxc6 bxc6 12. Ne2 $18) 10. Qb3 {[%emt 0:04:10]} (10. Qd2 $15) 10... O-O $17 {[%emt 0:00:55][%cal Ob7b5] [#]} 11. Bg5 $146 {[%emt 0:04:24]} (11. Ne2 $142) ({Predecessor:} 11. Ne2 Nd3+ 12. Kd2 Ne5 13. Ng3 Rb8 14. Be2 Bd7 15. a4 Qc7 16. Qc2 b6 17. Bg5 {0-1 (36) Fraczek,D (2273)-Grycel,K (2263) Dzwirzyno 2004}) 11... Re8 {[%emt 0:03:34][%cal Ob7b5]} 12. h4 {[%emt 0:12:17]} (12. Bxf6 $17 gxf6 13. Ne2) 12... b5 {[%emt 0:09:49]} 13. Bxf6 {[%emt 0:19:46]} bxc4 {[%emt 0:06:46]} (13... gxf6 $19 {has better winning chances.} 14. cxb5 exd5) 14. Bxc4 {[%emt 0:01:52] aiming for Bxe5.} Nxc4 {[%emt 0:00:21]} 15. Qxc4 {[%emt 0:00:40]} Ba6 {[%emt 0:00:17]} 16. Qb3 {[%emt 0:00:02][%cal Od5e6]} Rab8 {[%emt 0:00:29]} 17. Qc2 {[%emt 0:00:02]} gxf6 {[%emt 0:00:36]} 18. dxe6 {[%emt 0:02:21]} Rxe6 {[%emt 0:02:25] Strongly threatening ...d5.} 19. Kf2 {[%emt 0:03:14] [#]} Bc4 {[%emt 0:01:34]} (19... d5 $1 $17 {Threatens to win with ...Reb6.} 20. Nh3 (20. exd5 Reb6 $19) 20... dxe4 21. fxe4 Qc7) 20. Nh3 $11 {[%emt 0:02:18]} Rb3 {[%emt 0:01:23][%cal Bb8b3,Bb3c3,Bc3c2][%mdl 32]} 21. Nf4 {[%emt 0:04:05] Inhibits d5. Black must now prevent Rhb1.} Rxc3 {[%emt 0:01:22]} 22. Qd1 {[%emt 0:00:02]} Bb3 {[%emt 0:01:10]} 23. Qe1 {[%emt 0:00:02]} Rc2+ {[%emt 0:04:09]} 24. Kg3 {[%emt 0:00:01]} Qxe1+ {[%emt 0:00:18]} 25. Rhxe1 {[%emt 0:00:01]} Re5 {[%emt 0:01:41]} 26. Rab1 {[%emt 0:00:32]} c4 {[%emt 0:01:21]} 27. Red1 {[%emt 0:01:22]} Rb2 {[%emt 0:04:14]} 28. Rxb2 {[%emt 0:00:07]} Bxd1 $14 {[%emt 0:00:08][%mdl 4096] Endgame KRB-KRN} 29. Nd5 {[%emt 0:03:48]} Kg7 {[%emt 0:01:20]} 30. Kf4 {[%emt 0:01:40]} Bb3 {[%emt 0:00:39]} 31. Rd2 {[%emt 0:00:21]} h5 {[%emt 0:00:46]} 32. g4 {[%emt 0:01:36]} hxg4 {[%emt 0:00:14]} 33. fxg4 {[%emt 0:00:06]} Kg6 {[%emt 0:06:29]} 34. Ke3 {[%emt 0:00:37]} Re8 {[%emt 0:01:31] [#]} (34... Kg7 $11) 35. Nc3 $1 $16 {[%emt 0:00:43][%mdl 1024] White has strong compensation.} Rh8 {[%emt 0:00:55]} 36. h5+ {[%emt 0:00:16][%cal Bh4h5,Bh5h6][%mdl 32]} Kg5 {[%emt 0:00:17]} 37. Kf3 {[%emt 0:00:01]} Rb8 {[%emt 0:01:39]} 38. Rd5+ {[%emt 0:00:19]} Kh4 $2 {[%emt 0:00:43][%mdl 8192]} (38... Kh6 $16) 39. h6 {[%emt 0:00:02] Weighted Error Value: White=0.12 (very precise) /Black=0.47} 1-0

[Event "VII GM Barcelona CC 2022"]
[Site "Barcelona"]
[Date "2022.05.14"]
[Round "9.5"]
[White "Del Prado Rodriguez, Xulio"]
[Black "Munoz, Miguel"]
[Result "1/2-1/2"]
[ECO "C92"]
[WhiteElo "2326"]
[BlackElo "2421"]
[Annotator "TA"]
[PlyCount "25"]
[EventDate "2022.05.10"]
[EventType "tourn"]
[EventCountry "ESP"]
[SourceTitle "playchess.com"]
[Source "ChessBase"]
[SourceQuality "1"]
[TimeControl "5400+30"]

{[%evp 23,25,0,34,0]} 1. e4 e5 2. Nf3 Nc6 3. Bb5 {[%cal Bf1b5,Bb5a4,Ba4b3][%mdl 32]} a6 4. Ba4 Nf6 5. O-O Be7 6. Re1 b5 7. Bb3 O-O 8. c3 d6 9. h3 Bb7 10. d4 Re8 11. Ng5 Rf8 12. Nf3 Re8 {[#]} 13. Ng5 $146 {An even fight not without its subleties. C92: Closed Ruy Lopez: 9...Be6, Karpov and Flohr-Zaitsev Variations.} ({Predecessor:} 13. Nbd2 Bf8 14. a4 exd4 15. cxd4 h6 16. Bc2 Nb4 17. Bb1 c5 18. d5 Nd7 19. Ra3 c4 20. Nd4 Qf6 21. N2f3 Nc5 22. b3 Nbd3 23. Bxd3 Nxd3 24. Re3 b4 25. Ra1 Ne5 26. Nxe5 dxe5 27. Nf5 c3 28. Rf3 Qd8 29. Nxh6+ gxh6 30. Rg3+ Kh7 31. Qg4 {1-0 (31) So,W (2772)-Le,Q (2709) chess24.com INT 2021}) 1/2-1/2